bitfinex-derivatives/quotes_SOLF0:USTF0_20241016
["timestamp","ask_amount","ask_price","bid_price","bid_amount"]
[1729082165826,9.85,155.91,155.87,3.2081]
[1729082166518,1.4491,155.94,155.88,9.85]
[1729082166714,7.3891,155.94,155.88,9.85]
[1729082167023,7.3891,155.94,155.86,1.4154]
[1729082167024,1.4491,155.94,155.89,9.85]
[1729082167221,4.6559,155.94,155.89,13.0577]
[1729082167719,1.4491,155.94,155.89,9.85]
[1729082167908,1.4491,155.94,155.9,3.2076]
[1729082168807,4.6559,155.94,155.89,3.2078]
[1729082169615,9.85,155.93,155.89,3.2078]
[1729082170427,9.85,155.93,155.9,3.2075]
[1729082171422,5.94,155.97,155.93,3.2069]
[1729082171618,5.94,155.97,155.93,13.0569]
[1729082171820,5.94,155.97,155.92,9.85]
[1729082172025,9.1463,155.97,155.92,9.85]
[1729082172323,5.94,155.97,155.92,9.85]
[1729082172524,5.94,155.97,155.93,3.2069]
[1729082172818,9.85,155.98,155.92,9.85]
[1729082173316,5.94,155.99,155.93,9.85]
[1729082173513,11.2019,156.0,155.95,9.85]
[1729082174023,11.2019,156.0,155.96,3.2064]
[1729082174218,9.85,156.0,155.96,3.2064]
[1729082174525,15.79,156.02,155.97,9.85]
[1729082174820,5.94,156.02,155.97,13.0561]
[1729082175424,9.1452,156.02,155.97,13.0561]
[1729082175619,5.94,156.02,155.97,9.85]
[1729082175821,5.94,156.02,155.98,3.2059]
[1729082176718,11.1846,156.03,155.99,3.2057]
[1729082180422,9.85,156.07,156.02,3.2051]
[1729082180627,5.94,156.09,156.04,9.85]
[1729082180928,9.85,156.08,156.04,9.85]
[1729082181130,9.85,156.07,156.02,9.85]
[1729082181326,9.85,156.04,155.97,2.7864]
[1729082181530,13.0548,156.04,155.99,13.0557]
[1729082181831,9.85,156.04,155.99,9.85]
[1729082182028,18.9943,156.06,156.01,3.2052]
[1729082182228,15.79,156.06,156.0,9.85]
[1729082182429,3.2046,156.05,156.0,9.85]
[1729082183932,9.85,156.06,156.01,3.2053]
[1729082184631,5.94,156.08,156.03,3.2047]
[1729082184823,5.94,156.08,156.03,13.0547]
[1729082184824,9.85,156.08,156.03,13.0547]
[1729082185029,7.3896,156.1,156.03,9.85]
[1729082185224,9.85,156.09,156.04,9.85]
[1729082185426,5.94,156.1,156.01,5.94]
[1729082185427,5.94,156.1,156.06,13.0543]
[1729082185731,5.94,156.1,156.06,9.85]
[1729082187334,9.1435,156.1,156.06,9.85]
[1729082187735,5.94,156.1,156.06,13.0543]
[1729082188626,9.1437,156.1,156.06,9.85]
[1729082190027,18.9937,156.1,156.05,3.2045]
[1729082190526,5.94,156.1,156.06,13.0542]
[1729082190934,1.4148,156.13,156.07,9.85]
[1729082191234,3.2032,156.12,156.07,13.0541]
[1729082191431,11.2648,156.13,156.07,9.85]
[1729082191730,11.2648,156.13,156.05,5.92]
[1729082191731,5.92,156.23,156.12,9.85]
[1729082191933,9.85,156.22,156.12,5.92]
[1729082192233,9.85,156.22,156.16,9.85]
[1729082192431,1.4442,156.25,156.16,9.85]
[1729082192622,1.4442,156.25,156.19,9.85]
[1729082192823,3.2001,156.27,156.23,9.85]
[1729082193833,3.2001,156.27,156.19,15.36]
[1729082194030,3.2002,156.26,156.18,1.4175]
[1729082194636,3.2002,156.26,156.2,3.2014]
[1729082195433,4.1277,156.29,156.2,15.36]
[1729082195633,1.3397,156.29,156.22,15.36]
[1729082196329,1.3397,156.29,156.24,3.2006]
[1729082196525,1.3397,156.29,156.22,15.36]
[1729082196945,1.3397,156.29,156.24,3.2006]
[1729082197238,3.1995,156.3,156.24,3.2006]
[1729082198334,1.4301,156.34,156.24,15.36]
[1729082198530,19.25,156.48,156.28,15.36]
[1729082198531,5.92,156.38,156.28,15.36]
[1729082198727,15.36,156.37,156.28,5.92]
[1729082198933,15.36,156.36,156.28,5.92]
[1729082199334,3.1992,156.31,156.26,9.1202]
[1729082199533,15.36,156.34,156.24,15.36]
[1729082199728,15.36,156.32,156.22,18.1206]
[1729082199934,3.1998,156.29,156.23,3.2007]
[1729082200239,15.36,156.32,156.23,3.2007]
[1729082200639,3.1998,156.28,156.22,10.5271]
[1729082200832,3.1998,156.28,156.22,7.3261]
[1729082201138,15.36,156.32,156.22,7.3261]
[1729082201542,3.1997,156.29,156.23,3.2007]
[1729082202535,2.7442,156.33,156.24,3.2006]
[1729082202536,3.1994,156.3,156.24,3.2006]
[1729082203941,3.1997,156.29,156.22,25.887]
[1729082204435,3.1997,156.29,156.23,3.2008]
[1729082204638,15.36,156.31,156.22,22.6861]
[1729082204840,3.1997,156.29,156.22,22.6861]
[1729082205040,3.1997,156.29,156.23,3.2008]
[1729082206233,15.36,156.31,156.22,7.3261]
[1729082206434,15.36,156.29,156.21,15.36]
[1729082206634,15.36,156.27,156.2,5.9]
[1729082206934,15.36,156.27,156.18,4.6193]
[1729082207143,15.36,156.25,156.18,7.3175]
[1729082207445,1.3706,156.26,156.21,3.2012]
[1729082207647,7.2792,156.3,156.21,15.36]
[1729082207832,1.4211,156.32,156.23,15.36]
[1729082208031,1.4211,156.32,156.25,15.36]
[1729082208236,15.36,156.34,156.25,15.36]
[1729082208434,21.26,156.36,156.25,16.6972]
[1729082208751,3.1989,156.33,156.27,3.1998]
[1729082209642,3.1987,156.34,156.28,3.1997]
[1729082210043,1.4211,156.35,156.25,1.3372]
[1729082210239,3.1986,156.34,156.28,3.1998]
[1729082210435,1.4211,156.35,156.25,1.3372]
[1729082210942,2.8592,156.35,156.27,3.1999]
[1729082211343,3.1991,156.32,156.26,3.2001]
[1729082211743,27.4492,156.35,156.24,5.9]
[1729082211943,3.1993,156.31,156.25,3.2003]
[1729082212134,3.1993,156.31,156.24,5.9]
[1729082213439,3.1993,156.31,156.26,3.2002]
[1729082213840,3.1993,156.31,156.24,5.9]
[1729082214045,24.59,156.34,156.23,1.3418]
[1729082214237,24.59,156.34,156.24,5.9]
[1729082214647,3.1997,156.29,156.24,9.1006]
[1729082214942,3.1997,156.29,156.23,1.3418]
[1729082215146,3.1999,156.28,156.23,10.4425]
[1729082215845,3.1999,156.28,156.23,7.2418]
[1729082216147,3.1996,156.29,156.22,5.9]
[1729082216445,30.49,156.32,156.22,5.9]
[1729082216838,3.2002,156.27,156.22,5.9]
[1729082217039,30.49,156.32,156.22,5.9]
[1729082217441,3.2004,156.26,156.2,3.2013]
[1729082218040,3.2005,156.25,156.2,3.2013]
[1729082219245,3.2005,156.25,156.19,10.4683]
[1729082219748,8.6193,156.28,156.19,1.3667]
[1729082219941,1.3077,156.27,156.18,9.1017]
[1729082220347,1.3077,156.27,156.18,5.9]
[1729082220542,3.2008,156.24,156.19,3.2016]
[1729082220951,1.3077,156.27,156.15,1.4381]
[1729082220952,25.8977,156.27,156.15,1.4381]
[1729082221246,25.8977,156.27,156.01,9.616]
[1729082221247,24.59,156.24,156.11,24.59]
[1729082221446,24.59,156.22,156.12,1.17684554]
[1729082221749,24.59,156.22,156.11,5.9]
[1729082221750,8.6333,156.21,156.11,5.9]
[1729082222349,24.59,156.19,156.08,5.9]
[1729082222539,24.59,156.17,156.08,5.9]
[1729082222741,5.9,156.16,156.05,5.9]
[1729082223336,3.2035,156.1,156.04,5.8945]
[1729082223540,24.59,156.14,156.04,2.6898]
[1729082223736,1.4181,156.13,156.04,2.6898]
[1729082224144,3.2032,156.12,156.06,3.2043]
[1729082224741,3.2032,156.12,156.06,27.7943]
[1729082224939,3.2032,156.12,156.06,3.2043]
[1729082225454,1.31,156.2,156.06,3.2043]
[1729082225455,5.9,156.14,156.06,24.59]
[1729082225754,5.9,156.15,156.07,5.9]
[1729082225957,5.9,156.16,156.07,5.9]
[1729082226155,3.2026,156.15,156.08,3.2038]
[1729082226347,5.9,156.16,156.08,3.2038]
[1729082226548,3.2028,156.14,156.08,3.2038]
[1729082229353,3.2031,156.13,156.07,9.1041]
[1729082230664,3.2023,156.16,156.1,3.2034]
[1729082232760,3.2025,156.15,156.1,3.2034]
[1729082236165,5.9,156.17,156.07,5.9]
[1729082236364,3.2023,156.16,156.1,3.2035]
[1729082237859,3.2023,156.16,156.07,5.9]
[1729082238061,1.4181,156.19,156.07,5.9]
[1729082238359,1.4181,156.19,156.09,24.59]
[1729082238556,1.4181,156.19,156.1,1.3252]
[1729082238756,11.4868,156.21,156.16,3.2022]
[1729082239160,11.4868,156.21,156.12,24.59]
[1729082239357,11.4868,156.21,156.15,3.2024]
[1729082239559,11.4868,156.21,156.12,24.59]
[1729082240257,6.9,156.21,156.12,24.59]
[1729082240464,5.9,156.21,156.17,3.2019]
[1729082241460,1.3392,156.23,156.11,7.226]
[1729082241661,5.9,156.27,156.14,24.59]
[1729082241965,5.9,156.27,156.17,24.59]
[1729082242161,5.9,156.27,156.17,30.49]
[1729082242464,1.3343,156.28,156.22,3.201]
[1729082242652,1.3343,156.28,156.18,4.123]
[1729082243054,3.2001,156.27,156.21,3.2011]
[1729082243266,1.3343,156.28,156.18,4.123]
[1729082243863,2.7428,156.32,156.18,4.123]
[1729082243864,8.6428,156.32,156.2,24.59]
[1729082244063,2.7428,156.32,156.22,24.59]
[1729082244259,5.9,156.33,156.22,24.59]
[1729082244260,9.0989,156.33,156.22,24.59]
[1729082244453,5.9,156.33,156.22,24.59]
[1729082244863,1.3343,156.34,156.25,24.59]
[1729082245068,5.9,156.36,156.26,5.9]
[1729082245262,5.9,156.35,156.26,5.9]
[1729082245461,3.1991,156.32,156.26,9.1001]
[1729082246166,3.1982,156.36,156.26,5.9]
[1729082246372,7.2685,156.37,156.26,5.9]
[1729082246672,3.1986,156.34,156.27,3.2]
[1729082247266,3.1986,156.34,156.26,5.9]
[1729082247464,31.8585,156.37,156.28,3.1998]
[1729082247671,31.8585,156.37,156.26,5.9]
[1729082248461,31.8585,156.37,156.27,2.8528]
[1729082249568,3.1987,156.34,156.28,3.1998]
[1729082250464,3.1989,156.33,156.27,6.0528]
[1729082250667,31.8585,156.37,156.26,5.9]
[1729082250869,31.8585,156.37,156.24,5.88]
[1729082250870,24.59,156.32,156.24,5.88]
[1729082251068,2.8509,156.31,156.22,9.081]
[1729082251272,24.59,156.3,156.22,5.88]
[1729082251472,3.2001,156.27,156.22,5.88]
[1729082251974,3.2006,156.25,156.17,3.2019]
[1729082252166,24.59,156.27,156.19,5.88]
[1729082252367,24.59,156.27,156.18,5.88]
[1729082254275,3.2008,156.24,156.18,9.0818]
[1729082254774,3.2008,156.23,156.18,5.88]
[1729082255369,3.2004,156.25,156.19,3.2016]
[1729082255778,24.59,156.27,156.19,3.2016]
[1729082256076,3.2006,156.24,156.19,3.2016]
[1729082256374,24.59,156.27,156.19,3.2016]
[1729082256571,24.59,156.27,156.18,5.88]
[1729082256572,5.88,156.27,156.18,5.88]
[1729082256879,1.3064,156.3,156.18,5.88]
[1729082257079,3.1998,156.29,156.23,3.2007]
[1729082259372,7.1864,156.3,156.18,7.2727]
[1729082259978,3.2004,156.26,156.2,3.2014]
[1729082260971,24.59,156.29,156.18,5.88]
[1729082261973,3.2006,156.25,156.19,3.2015]
[1729082262168,30.47,156.27,156.15,1.3125]
[1729082262373,24.59,156.24,156.14,1.4092]
[1729082262570,9.2494,156.31,156.04,6.4093]
[1729082262571,24.59,156.22,156.12,5.88]
[1729082263072,24.59,156.22,156.12,9.083]
[1729082263678,3.202,156.18,156.12,9.083]
[1729082263977,24.59,156.22,156.13,3.2028]
[1729082264280,3.2018,156.19,156.13,3.2028]
[1729082264869,24.59,156.22,156.13,3.2028]
[1729082265183,3.2019,156.18,156.13,3.2028]
[1729082265881,3.2015,156.2,156.15,3.2025]
[1729082266574,3.2011,156.22,156.15,3.2024]
[1729082266774,3.2011,156.22,156.12,5.88]
[1729082266970,3.2011,156.22,156.12,7.2157]
[1729082268374,3.2011,156.22,156.17,3.202]
[1729082271186,10.0225,156.23,156.15,3.2024]
[1729082271187,3.2015,156.2,156.15,3.2024]
[1729082271787,3.2019,156.18,156.14,3.2026]
[1729082272082,3.2019,156.18,156.12,5.88]
[1729082272584,3.2021,156.17,156.12,3.2029]
[1729082272983,24.59,156.22,156.12,3.2029]
[1729082273384,10.0225,156.23,156.12,3.2029]
[1729082273385,3.202,156.18,156.12,3.2029]
[1729082273584,3.202,156.18,156.12,3.203]
[1729082273884,3.2023,156.16,156.1,91.20351342]
[1729082274485,5.88,156.19,156.11,3.2032]
[1729082274679,3.2021,156.17,156.1,85.32351342]
[1729082275079,3.2021,156.17,156.12,3.203]
[1729082275688,5.88,156.19,156.12,3.203]
[1729082275988,3.202,156.18,156.12,3.203]
[1729082276284,5.88,156.19,156.1,85.32351342]
[1729082276487,3.2022,156.17,156.11,3.2032]
[1729082276888,5.88,156.19,156.11,3.2032]
[1729082277084,3.2023,156.16,156.11,3.2032]
[1729082277589,3.2025,156.15,156.09,5.88]
[1729082277784,15.39,156.15,156.09,5.88]
[1729082278190,18.5926,156.15,156.09,9.0835]
[1729082278587,18.5926,156.15,156.1,3.2033]
[1729082278786,15.39,156.15,156.1,3.2033]
[1729082278990,3.2024,156.16,156.09,5.88]
[1729082279890,3.2024,156.16,156.11,3.2032]
[1729082280591,3.2018,156.19,156.13,3.2027]
[1729082280791,21.25,156.19,156.13,3.2027]
[1729082281788,4.1425,156.23,156.1,15.39]
[1729082282000,3.2011,156.22,156.14,15.39]
[1729082282484,1.3622,156.23,156.14,15.39]
[1729082282685,15.39,156.18,155.98,3.26877606]
[1729082282892,15.39,156.16,156.06,19.37358797]
[1729082283089,15.39,156.16,156.07,5.86]
[1729082283286,7.2179,156.17,156.08,15.39]
[1729082283493,1.3579,156.17,156.08,15.39]
[1729082283787,5.86,156.2,156.12,15.39]
[1729082284291,5.86,156.2,156.15,3.2024]
[1729082285189,9.0615,156.2,156.15,3.2024]
[1729082286192,3.2015,156.2,156.15,3.2024]
[1729082287290,15.39,156.2,156.11,5.86]
[1729082287493,3.2019,156.18,156.13,3.2029]
[1729082287693,15.39,156.2,156.13,3.2029]
[1729082287891,15.39,156.2,156.11,5.86]
[1729082287892,3.2017,156.19,156.14,3.2026]
[1729082288197,1.3429,156.21,156.12,15.39]
[1729082288900,4.5443,156.21,156.12,15.39]
[1729082289197,1.3429,156.21,156.14,15.39]
[1729082289399,1.3429,156.21,156.17,3.2019]
[1729082290401,1.3429,156.21,156.18,3.2018]
[1729082290903,5.86,156.25,156.2,3.2014]
[1729082291103,15.39,156.26,156.16,15.39]
[1729082291298,15.39,156.26,156.21,3.2011]
[1729082291299,24.4504,156.26,156.21,3.2011]
[1729082291601,21.25,156.26,156.16,15.39]
[1729082291803,5.86,156.26,156.2,3.2014]
[1729082292010,5.86,156.26,156.18,15.39]
[1729082292407,5.86,156.26,156.16,15.39]
[1729082292896,15.39,156.23,156.15,5.86]
[1729082293302,15.39,156.21,156.13,1.3901]
[1729082293498,15.39,156.23,156.13,1.3901]
[1729082294293,3.201,156.22,156.17,3.202]
[1729082294908,18.5909,156.23,156.18,3.2018]
[1729082295106,22.6445,156.25,156.16,15.39]
[1729082295305,22.6445,156.25,156.16,21.25]
[1729082295501,4.595,156.25,156.2,3.2014]
[1729082295806,1.3945,156.3,156.21,15.39]
[1729082295995,1.3945,156.3,156.25,3.2003]
[1729082296501,1.3945,156.3,156.21,16.696]
[1729082296806,1.3945,156.3,156.21,1.306]
[1729082297706,3.1997,156.29,156.23,3.2008]
[1729082298300,1.3945,156.3,156.23,3.2008]
[1729082298603,24.57,156.29,156.21,5.86]
[1729082298808,30.43,156.29,156.21,5.86]
[1729082299205,3.2002,156.27,156.21,9.0611]
[1729082301008,30.43,156.29,156.21,9.0611]
[1729082301210,3.2002,156.26,156.21,9.0611]
[1729082301596,3.2001,156.27,156.22,3.201]
[1729082301801,30.43,156.29,156.21,5.86]
[1729082303410,3.2003,156.26,156.22,3.201]
[1729082303711,24.57,156.37,156.25,24.57]
[1729082303903,2.8262,156.35,156.26,5.86]
[1729082304208,3.1988,156.34,156.28,3.1997]
[1729082304404,2.8262,156.35,156.25,5.86]
[1729082304904,3.1989,156.33,156.27,3.2]
[1729082308710,3.1987,156.34,156.25,5.86]
[1729082309510,8.6862,156.35,156.25,5.86]
[1729082309719,8.6862,156.35,156.3,3.1992]
[1729082309917,2.8262,156.35,156.3,3.1992]
[1729082310729,2.8262,156.35,156.31,3.199]
[1729082310730,1.4169,156.35,156.31,3.199]
[1729082311023,5.84,156.41,156.29,5.84]
[1729082311316,8.6729,156.41,156.3,5.84]
[1729082311524,3.1979,156.38,156.3,5.84]
[1729082311719,8.6729,156.41,156.33,3.1986]
[1729082312118,8.6729,156.41,156.3,5.84]
[1729082313111,3.1975,156.4,156.34,3.1985]
[1729082313307,8.6729,156.41,156.3,5.84]
[1729082313824,3.1979,156.38,156.32,3.1989]
[1729082316529,3.198,156.37,156.32,3.1989]
[1729082316915,3.1976,156.39,156.3,5.84]
[1729082317923,3.1976,156.39,156.33,3.1987]
[1729082318516,15.36,156.38,156.3,5.84]
[1729082318921,21.2,156.4,156.3,21.2]
[1729082319127,3.1977,156.39,156.33,3.1986]
[1729082319322,21.2,156.4,156.33,3.1986]
[1729082319827,3.1978,156.38,156.33,3.1986]
[1729082320025,21.2,156.4,156.33,3.1986]
[1729082320331,3.198,156.37,156.31,3.199]
[1729082320519,3.198,156.37,156.3,21.2]
[1729082321019,3.198,156.37,156.32,3.199]
[1729082321215,3.198,156.37,156.3,21.2]
[1729082321420,3.198,156.37,156.31,3.1991]
[1729082321620,21.2,156.4,156.31,3.1991]
[1729082322433,3.1982,156.36,156.31,3.1991]
[1729082324532,3.1982,156.36,156.3,24.3993]
[1729082325817,3.1988,156.34,156.28,18.5597]
[1729082326121,15.36,156.36,156.28,5.84]
[1729082326416,21.2,156.4,156.28,21.2]
[1729082326417,1.3531,156.35,156.28,21.2]
[1729082326616,3.1988,156.34,156.29,3.1995]
[1729082327023,1.3531,156.35,156.28,21.2]
[1729082327226,3.1992,156.31,156.26,18.5601]
[1729082327426,3.1992,156.31,156.26,24.4001]
[1729082328327,15.36,156.34,156.24,74.94]
[1729082328540,15.36,156.29,156.21,5.84]
[1729082328829,3.2004,156.26,156.21,5.84]
[1729082332636,1.3308,156.28,156.19,16.7355]
[1729082332827,15.36,156.25,156.16,15.36]
[1729082333131,1.3308,156.28,156.16,21.2]
[1729082333433,18.1551,156.29,156.19,15.36]
[1729082333731,18.1551,156.29,156.2,5.84]
[1729082334135,2.7951,156.29,156.21,15.36]
[1729082334433,3.2001,156.27,156.22,3.201]
[1729082334632,3.2001,156.27,156.21,15.36]
[1729082335224,3.2001,156.27,156.21,18.5612]
[1729082335923,3.2001,156.27,156.21,15.36]
[1729082336123,3.2001,156.27,156.22,3.201]
[1729082336531,2.7951,156.29,156.22,3.201]
[1729082336728,3.2002,156.26,156.21,18.5611]
[1729082337033,3.2002,156.26,156.21,15.36]
[1729082337338,2.7951,156.29,156.21,15.36]
[1729082337933,3.2001,156.27,156.22,3.2009]
[1729082338934,3.2003,156.26,156.21,18.5612]
[1729082339830,2.7951,156.29,156.21,15.36]
[1729082340030,3.2008,156.24,156.19,3.2015]
[1729082340235,15.36,156.27,156.18,5.84]
[1729082340436,5.84,156.26,156.18,5.84]
[1729082341233,3.201,156.23,156.18,9.0418]
[1729082341437,5.84,156.26,156.18,5.84]
[1729082341933,3.201,156.23,156.18,5.84]
[1729082342331,3.2011,156.22,156.18,5.84]
[1729082343430,3.2009,156.23,156.18,3.2018]
[1729082344732,5.84,156.26,156.16,21.2]
[1729082344942,3.201,156.22,156.17,3.202]
[1729082346136,15.36,156.25,156.15,5.84]
[1729082346535,3.2014,156.21,156.16,3.2022]
[1729082347643,1.4145,156.24,156.15,5.84]
[1729082347837,3.2012,156.22,156.17,3.2019]
[1729082348033,1.4145,156.24,156.16,15.36]
[1729082348639,3.201,156.23,156.18,3.2017]
[1729082349738,1.4145,156.24,156.16,15.36]
[1729082349936,3.2005,156.25,156.2,3.2014]
[1729082350142,5.84,156.27,156.2,15.36]
[1729082351344,3.2004,156.26,156.22,3.201]
[1729082354236,3.2004,156.26,156.2,15.36]
[1729082354237,3.2001,156.27,156.23,3.2008]
[1729082354441,3.2001,156.27,156.2,15.36]
[1729082354638,1.3679,156.28,156.2,15.36]
[1729082354837,2.7951,156.29,156.24,3.2006]
[1729082355040,1.3952,156.29,156.22,15.36]
[1729082355650,3.1996,156.3,156.22,15.36]
[1729082355850,15.36,156.34,156.22,15.36]
[1729082355851,5.84,156.31,156.22,15.36]
[1729082356046,3.1996,156.3,156.25,3.2003]
[1729082357051,3.1992,156.31,156.24,15.36]
[1729082357549,5.84,156.32,156.24,15.36]
[1729082357747,7.2742,156.33,156.24,15.36]
[1729082357945,7.2742,156.33,156.27,3.1998]
[1729082358450,3.1992,156.31,156.27,3.1998]
[1729082360551,3.1995,156.3,156.25,3.2002]
[1729082360748,3.1995,156.3,156.24,15.36]
[1729082361260,3.1995,156.3,156.26,3.2002]
[1729082361555,7.2742,156.33,156.24,15.36]
[1729082361761,7.2742,156.33,156.23,5.84]
[1729082361762,15.36,156.32,156.23,9.0407]
[1729082361955,15.36,156.32,156.23,5.84]
[1729082362156,7.2742,156.33,156.2,19.9011]
[1729082362157,15.36,156.3,156.2,19.9011]
[1729082362456,5.84,156.29,156.2,16.6998]
[1729082362655,3.2003,156.26,156.2,16.6998]
[1729082362846,3.2003,156.26,156.21,3.2012]
[1729082363049,5.84,156.29,156.21,3.2012]
[1729082365255,3.2004,156.26,156.21,3.2012]
[1729082365463,5.84,156.29,156.21,3.2012]
[1729082365958,3.2004,156.26,156.21,3.2012]
[1729082366464,5.84,156.29,156.21,3.2012]
[1729082367056,3.2001,156.27,156.2,16.6998]
[1729082367256,5.84,156.29,156.23,3.2008]
[1729082367464,5.84,156.29,156.2,16.6998]
[1729082367655,3.1999,156.28,156.24,3.2006]
[1729082367860,5.84,156.29,156.22,15.36]
[1729082368455,3.2,156.27,156.23,3.2007]
[1729082369150,2.7523,156.31,156.25,3.2004]
[1729082369353,8.5923,156.31,156.24,15.36]
[1729082370561,3.1996,156.29,156.25,3.2003]
[1729082370952,1.4342,156.33,156.26,15.36]
[1729082371559,5.82,156.36,156.28,15.36]
[1729082372661,3.1985,156.35,156.3,3.1993]
[1729082373364,5.82,156.36,156.31,3.1992]
[1729082373559,9.0183,156.36,156.31,3.1992]
[1729082374763,3.1983,156.36,156.31,3.1992]
[1729082374970,5.82,156.37,156.31,3.1992]
[1729082375164,3.1984,156.35,156.31,3.1992]
[1729082376369,9.0181,156.37,156.33,3.1988]
[1729082376770,1.4267,156.38,156.3,15.36]
[1729082376957,3.1983,156.36,156.32,3.199]
[1729082378575,3.1986,156.34,156.3,3.1993]
[1729082378775,1.4267,156.38,156.28,15.36]
[1729082379077,1.4267,156.38,156.27,5.82]
[1729082379078,15.36,156.37,156.27,5.82]
[1729082379376,3.1986,156.34,156.29,3.1995]
[1729082379566,15.36,156.37,156.27,5.82]
[1729082380869,3.1989,156.33,156.28,3.1997]
[1729082381075,5.82,156.35,156.26,21.18]
[1729082381376,3.1991,156.32,156.26,21.18]
[1729082381577,5.82,156.35,156.26,21.18]
[1729082381771,3.1989,156.33,156.28,3.1997]
[1729082382074,5.82,156.35,156.28,3.1997]
[1729082382265,3.1991,156.32,156.27,3.1999]
[1729082385778,3.1991,156.32,156.28,9.84]
[1729082388072,9.84,156.33,156.27,9.84]
[1729082388274,9.84,156.31,156.26,9.84]
[1729082388483,3.1995,156.3,156.26,9.84]
[1729082388968,3.1995,156.3,156.26,13.0402]
[1729082389175,3.1997,156.29,156.26,9.84]
[1729082389475,9.84,156.31,156.26,9.84]
[1729082389680,9.84,156.3,156.25,9.84]
[1729082390474,3.1998,156.28,156.25,9.84]
[1729082396176,3.1998,156.29,156.25,9.84]
[1729082396779,3.2,156.28,156.25,9.84]
[1729082397588,9.84,156.3,156.25,9.84]
[1729082397777,3.1998,156.29,156.26,9.84]
[1729082398280,3.1999,156.28,156.26,9.84]
[1729082398879,9.84,156.28,156.22,5.82]
[1729082399080,9.84,156.28,156.22,9.84]
[1729082399582,3.2003,156.26,156.22,9.84]
[1729082400291,3.2003,156.26,156.22,13.041]
[1729082400876,3.2002,156.27,156.22,9.84]
[1729082401084,9.84,156.25,156.15,1.3985]
[1729082401384,9.84,156.25,156.19,9.84]
[1729082401576,3.201,156.23,156.19,9.84]
[1729082402284,1.4418,156.26,156.21,9.84]
[1729082402582,1.4418,156.26,156.23,9.84]
[1729082402980,2.7125,156.3,156.23,9.84]
[1729082402981,3.2001,156.27,156.23,13.0407]
[1729082404786,3.2003,156.26,156.23,13.0407]
[1729082404984,3.2003,156.26,156.23,3.2007]
[1729082405175,9.84,156.25,156.2,18.8613]
[1729082405383,9.84,156.25,156.2,13.0413]
[1729082405384,3.2009,156.23,156.2,13.0413]
[1729082405579,3.2009,156.23,156.2,9.84]
[1729082405984,3.2009,156.23,156.19,3.2015]
[1729082406181,9.84,156.22,156.17,9.84]
[1729082406384,5.82,156.26,156.15,9.84]